bitfinex/quotes_ETHUSD_20210401
["timestamp","ask_amount","ask_price","bid_price","bid_amount"]
[1617261709478,1.66536188,1921.9,1921.8,35.44889213]
[1617261710078,1.66536188,1921.9,1921.8,43.44889213]
[1617261710278,0.66536188,1921.9,1921.8,45.97942759]
[1617261710478,0.66536188,1921.9,1921.8,44.79889213]
[1617261710679,2.0,1922.4,1921.9,26.5]
[1617261710884,2.0,1922.4,1922.3,10.58]
[1617261711480,2.0,1922.4,1922.3,25.93533704]
[1617261711678,2.0,1922.4,1922.3,15.28533704]
[1617261711880,2.0,1922.4,1922.3,27.08959046]
[1617261712104,2.0,1922.4,1922.3,27.25641959]
[1617261712904,2.0,1922.4,1922.3,28.45641959]
[1617261713105,2.0,1922.4,1922.3,45.306986]
[1617261713704,2.0,1922.4,1922.3,41.78218442]
[1617261715130,2.0,1922.4,1922.3,43.08538578]
[1617261715330,0.72890314,1922.4,1922.3,43.08538578]
[1617261715530,0.72890314,1922.4,1922.3,41.78218442]
[1617261715931,0.72890314,1922.4,1922.3,28.78218442]
[1617261716135,0.72890314,1922.4,1922.3,24.93161801]
[1617261716335,0.72890314,1922.4,1922.3,26.23481937]
[1617261716735,0.72890314,1922.4,1922.3,28.1377171]
[1617261717136,0.72890314,1922.4,1922.3,36.1377171]
[1617261717390,3.14e-06,1922.4,1922.3,36.1377171]
[1617261717792,1.236e-05,1922.5,1922.3,36.1377171]
[1617261717991,1.236e-05,1922.5,1922.4,17.84218836]
[1617261718191,1.236e-05,1922.5,1922.4,29.51398923]
[1617261718390,1.95001236,1922.9,1922.4,17.60573841]
[1617261718592,1.95001236,1922.9,1922.6,5.9731287]
[1617261718793,1.95001236,1922.9,1922.8,11.45]
[1617261718990,1.95001236,1922.9,1922.8,12.64118888]
[1617261719190,1.95001236,1922.9,1922.8,13.97924694]
[1617261719391,1.95001236,1922.9,1922.8,13.57924694]
[1617261719590,1.22111236,1922.9,1922.8,12.62118888]
[1617261719789,1.22111236,1922.9,1922.8,17.62118888]
[1617261720191,1.22111236,1922.9,1922.8,18.95924694]
[1617261720391,0.12111236,1922.9,1922.8,18.95924694]
[1617261720592,0.12111236,1922.9,1922.8,17.62118888]
[1617261720992,0.12111236,1922.9,1922.8,19.14258027]
[1617261721395,0.12111236,1922.9,1922.8,17.62118888]
[1617261721991,0.12111236,1922.9,1922.8,16.43]
[1617261722192,0.12111236,1922.9,1922.8,16.63327992]
[1617261722390,0.07111236,1922.9,1922.8,16.63327992]
[1617261724073,0.07111236,1922.9,1922.8,16.25327992]
[1617261724674,0.07111236,1922.9,1922.8,5.20327992]
[1617261724874,0.07111236,1922.9,1922.8,2.20327992]
[1617261725074,0.45111236,1922.9,1922.8,2.20327992]
[1617261725274,18.05111236,1922.9,1922.8,2.20327992]
[1617261725472,17.44111236,1922.9,1922.8,2.20327992]
[1617261726472,17.44111236,1922.9,1922.8,2.60327992]
[1617261726674,25.23571236,1922.9,1922.8,2.60327992]
[1617261727475,17.05111236,1922.9,1922.8,2.60327992]
[1617261727675,10.6349,1923.0,1922.8,2.60327992]
[1617261727875,10.4949,1923.0,1922.9,5.01]
[1617261728274,15.6949,1923.0,1922.9,5.01]
[1617261728677,0.55811153,1923.2,1922.9,5.01]
[1617261728876,0.55811153,1923.2,1923.0,5.01]
[1617261729079,0.55811153,1923.2,1923.1,5.01]
[1617261729475,0.55811153,1923.2,1923.1,12.2232]
[1617261729675,0.55811153,1923.2,1923.1,7.2132]
[1617261730278,1.71311153,1923.4,1923.1,7.2132]
[1617261731285,1.71311153,1923.4,1923.1,7.79024]
[1617261731486,1.66311153,1923.4,1923.1,7.79024]
[1617261732087,1.66311153,1923.4,1923.3,0.13147004]
[1617261733111,14.06311153,1923.4,1923.3,0.13147004]
[1617261734311,1.66311153,1923.4,1923.3,0.13147004]
[1617261736934,1.12106612,1923.4,1923.3,6.08147004]
[1617261737137,1.12106612,1923.4,1923.3,3.51147004]
[1617261738554,1.12106612,1923.4,1923.3,4.70248218]
[1617261739357,1.12106612,1923.4,1923.3,1.32248218]
[1617261739558,1.12106612,1923.4,1923.3,0.53147004]
[1617261740158,0.85006612,1923.4,1923.3,5.54147004]
[1617261740358,0.85006612,1923.4,1923.3,13.54147004]
[1617261740559,0.85006612,1923.4,1923.3,14.73248218]
[1617261740759,0.85006612,1923.4,1923.3,6.73248218]
[1617261741006,18.20356612,1923.4,1923.3,1.72248218]
[1617261741206,10.25356612,1923.4,1923.3,1.72248218]
[1617261741609,10.25356612,1923.4,1923.3,0.53147004]
[1617261742007,77.4937728,1927.9,1923.3,0.53147004]
[1617261742416,1.6858819,1924.0,1923.7,0.4]
[1617261742609,0.4,1924.0,1923.7,0.4]
[1617261742807,1.2,1923.9,1923.7,0.4]
[1617261743207,1.2,1923.9,1923.8,0.39]
[1617261744012,1.2,1923.9,1923.6,5.01]
[1617261744213,1.2,1923.9,1923.6,5.42]
[1617261745416,1.2,1923.9,1923.6,13.20921]
[1617261745816,0.084,1924.2,1923.6,13.48921]
[1617261746017,0.084,1924.2,1923.6,13.20921]
[1617261746433,0.084,1924.2,1923.9,0.39]
[1617261746632,0.084,1924.2,1924.1,0.39]
[1617261746831,1.2,1924.3,1924.1,0.39]
[1617261747031,1.2,1924.3,1923.7,5.367]
[1617261747032,0.14,1924.2,1923.7,5.367]
[1617261747232,0.14,1924.2,1923.8,1.65254498]
[1617261747433,0.14,1924.2,1923.9,5.01]
[1617261747635,0.14,1924.2,1923.8,0.39]
[1617261747831,0.14,1924.2,1923.8,8.39]
[1617261748031,0.14,1924.2,1923.8,0.39]
[1617261748232,0.14,1924.2,1923.8,8.45836]
[1617261748531,0.084,1924.3,1923.9,0.4]
[1617261748754,0.084,1924.3,1924.0,5.01]
[1617261748955,0.084,1924.3,1924.1,0.38]
[1617261749355,5.82,1924.4,1924.1,0.38]
[1617261749555,0.084,1924.5,1924.0,5.01]
[1617261749757,0.084,1924.5,1924.0,5.41]
[1617261750161,0.084,1924.5,1924.1,5.01]
[1617261750557,0.084,1924.5,1924.2,5.01]
[1617261750758,0.084,1924.5,1924.1,5.01]
[1617261750759,4.54,1924.4,1924.0,5.41]
[1617261750958,4.54,1924.4,1924.0,5.01]
[1617261751381,4.54,1924.4,1923.9,5.01]
[1617261751585,4.54,1924.4,1923.9,5.41]
[1617261751983,5.74,1924.4,1923.9,5.41]
[1617261752586,5.74,1924.4,1924.2,0.39]
[1617261752789,2.14,1924.4,1924.2,0.39]
[1617261753189,7.8725,1924.5,1924.2,0.39]
[1617261753387,4.4725,1924.5,1924.2,0.39]
[1617261753787,3.2725,1924.5,1924.0,5.01]
[1617261754016,6.76,1924.4,1924.1,0.39]
[1617261754219,5.56,1924.4,1924.0,5.41]
[1617261754418,3.16,1924.4,1924.0,5.8]
[1617261754621,2.0725,1924.5,1924.0,5.8]
[1617261754820,2.0725,1924.5,1924.3,0.39]
[1617261755019,2.0725,1924.5,1924.2,0.39]
[1617261755020,7.7885,1924.5,1924.2,0.39]
[1617261755220,5.3885,1924.5,1924.3,0.39]
[1617261755423,39.48999,1924.6,1924.3,0.39]
[1617261755622,29.1048,1924.6,1924.0,10.8]
[1617261756020,29.1048,1924.6,1924.4,0.4]
[1617261756419,29.1048,1924.6,1924.0,10.41]
[1617261756637,29.1048,1924.6,1924.3,0.41]
[1617261757037,9.59,1924.2,1924.1,1.59101214]
[1617261757236,9.59,1924.2,1924.1,1.19101214]
[1617261758237,9.59,1924.2,1924.1,7.78731]
[1617261758437,8.59,1924.2,1924.1,7.78731]
[1617261758639,8.59,1924.2,1924.1,12.06731]
[1617261759255,8.59,1924.2,1924.1,13.25832214]
[1617261762981,8.59,1924.2,1924.1,5.47101214]
[1617261763380,7.59,1924.2,1924.1,1.19101214]
[1617261763580,7.59,1924.2,1924.0,10.41]
[1617261764180,7.59,1924.2,1924.0,18.41]
[1617261764380,7.59,1924.2,1924.0,10.41]
[1617261764610,7.59,1924.2,1924.1,6.11]
[1617261765611,2.79,1924.2,1924.1,6.11]
[1617261765814,7.78784,1924.4,1924.1,6.11]
[1617261766212,5.38784,1924.4,1924.2,5.01]
[1617261766413,36.89216,1924.6,1924.2,5.41]
[1617261766613,22.38596,1924.6,1924.2,5.41]
[1617261766815,57.84765,1925.1,1924.2,5.41]
[1617261767014,57.84765,1925.1,1924.5,0.41]
[1617261767015,68.3729097,1925.1,1924.5,0.41]
[1617261767234,68.3729097,1925.1,1924.9,0.15128876]
[1617261768034,72.2667197,1925.1,1924.9,0.15128876]
[1617261768438,71.2667197,1925.1,1924.9,0.15128876]
[1617261769238,71.6567197,1925.1,1924.9,0.15128876]
[1617261770476,71.2667197,1925.1,1924.9,0.15128876]
[1617261771278,71.2667197,1925.1,1924.9,0.55128876]
[1617261771477,67.3729097,1925.1,1924.9,0.55128876]
[1617261771676,57.84765,1925.1,1924.9,0.55128876]
[1617261772883,57.84765,1925.1,1925.0,1.1]
[1617261772884,67.3729097,1925.1,1925.0,1.1]
[1617261773081,42.98275,1925.1,1925.0,1.1]
[1617261773280,52.5080097,1925.1,1925.0,1.1]
[1617261773481,51.5080097,1925.1,1925.0,1.1]
[1617261776307,51.51427601,1925.1,1925.0,1.1]
[1617261777307,53.51427601,1925.1,1925.0,1.1]
[1617261778531,51.41427601,1925.1,1924.9,0.55128876]
[1617261778733,38.43152601,1925.1,1924.9,0.55128876]
[1617261779532,38.43152601,1925.1,1924.9,2.16128876]
[1617261779731,38.43152601,1925.1,1924.9,0.96128876]
[1617261780132,38.43152601,1925.1,1924.9,2.16128876]
[1617261780557,38.43152601,1925.1,1924.9,1.75128876]
[1617261781157,46.21851601,1925.1,1924.9,1.75128876]
[1617261782160,46.21851601,1925.1,1924.9,4.75128876]
[1617261782360,46.21851601,1925.1,1924.9,1.75128876]
[1617261783405,45.21851601,1925.1,1924.9,1.75128876]
[1617261784407,37.43152601,1925.1,1924.9,0.55128876]
[1617261785629,45.21898601,1925.1,1924.9,0.55128876]
[1617261786833,2.00626631,1925.1,1924.9,1.75128876]
[1617261788435,1.00626631,1925.1,1924.9,0.55128876]
[1617261789439,1.00626631,1925.1,1924.9,1.75128876]
[1617261791457,8.79368631,1925.1,1924.9,1.75128876]
[1617261791657,7.78742,1925.1,1924.9,1.75128876]
[1617261793485,6.78742,1925.1,1924.9,1.75128876]
[1617261797911,15.8087597,1925.3,1924.9,1.75128876]
[1617261797912,5.4252597,1925.3,1924.9,1.75128876]
[1617261798136,12.3952901,1925.4,1924.9,2.03128876]
[1617261798739,12.3952901,1925.4,1924.9,1.75128876]
[1617261799540,7.78743,1925.1,1924.9,1.75128876]
[1617261800741,7.78743,1925.1,1924.9,0.55128876]
[1617261801983,7.78743,1925.1,1924.9,1.75128876]
[1617261803588,16.15551043,1925.3,1924.9,1.75128876]
[1617261803787,19.6528497,1925.3,1924.9,8.45658876]
[1617261803991,11.8652597,1925.3,1924.9,8.77158876]
[1617261804189,6.44,1925.3,1924.9,8.77158876]
[1617261804390,36.4252597,1925.4,1924.9,8.77158876]
[1617261804790,36.4252597,1925.4,1924.9,8.36158876]
[1617261804989,2.95122093,1925.3,1924.9,8.36158876]
[1617261805193,2.95122093,1925.3,1924.9,16.14756876]
[1617261805591,2.95101679,1925.4,1924.9,17.33809366]
[1617261805790,2.95101679,1925.4,1925.1,0.38]
[1617261806611,2.95101679,1925.4,1924.9,20.26309366]
[1617261806812,2.95101679,1925.4,1925.0,0.39]
[1617261807012,2.95101679,1925.4,1924.9,13.12026876]
[1617261807212,14.91225649,1925.4,1924.9,13.50026876]
[1617261807414,14.91225649,1925.4,1924.9,10.26026876]
[1617261807613,20.89779,1925.5,1925.3,0.39]
[1617261807614,25.0730497,1925.5,1925.3,0.39]
[1617261807817,25.0730497,1925.5,1924.9,8.29266431]
[1617261808014,25.0730497,1925.5,1925.2,0.41]
[1617261808214,25.0730497,1925.5,1925.0,11.19844]
[1617261808414,3.89299,1925.4,1925.1,1.6]
[1617261809248,25.0730497,1925.5,1925.1,1.6]
[1617261809447,4.1752597,1925.5,1925.1,9.38517]
[1617261809648,4.1752597,1925.5,1925.2,0.4]
[1617261809849,14.7613,1925.6,1925.3,0.39]
[1617261810047,14.7613,1925.6,1925.5,0.1860232]
[1617261810248,2.9762608,1925.8,1925.5,0.1860232]
[1617261810648,6.8682208,1925.8,1925.5,1.3860232]
[1617261811251,10.7604408,1925.8,1925.5,1.3860232]
[1617261811451,9.7604408,1925.8,1925.5,1.3860232]
[1617261811650,9.63986926,1925.8,1925.5,1.3860232]
[1617261812472,6.82418,1925.8,1925.5,1.3860232]
[1617261812673,6.82418,1925.8,1925.7,0.4]
[1617261812874,3.93196,1925.8,1925.7,0.4]
[1617261813077,3.93196,1925.8,1925.7,1.6]
[1617261813274,3.93196,1925.8,1925.7,1.77190142]
[1617261813475,4.93196,1925.8,1925.7,1.77190142]
[1617261813673,1.04,1925.8,1925.7,1.77190142]
[1617261814272,1.04,1925.8,1925.7,6.78190142]
[1617261814511,1.14,1925.8,1925.7,1.37190142]
[1617261814712,1.14,1925.8,1925.7,6.38190142]
[1617261815113,1.14,1925.8,1925.7,9.24190142]
[1617261815314,1.14,1925.8,1925.7,9.28040142]
[1617261815914,3.88699404,1926.1,1925.7,9.28040142]
[1617261816116,3.88699404,1926.1,1925.7,4.27040142]
[1617261816316,3.88699404,1926.1,1925.8,0.406]
[1617261816515,2.88699404,1926.1,1926.0,0.38]
[1617261816717,2.88699404,1926.1,1925.7,1.41040142]
[1617261816916,2.88699404,1926.1,1925.8,0.697]
[1617261817116,2.88699404,1926.1,1925.9,1.2]
[1617261817117,3.89161,1926.0,1925.9,1.2]
[1617261817319,26.44151,1926.0,1925.9,1.2]
[1617261817717,56.44151,1926.0,1925.9,1.2]
[1617261818116,60.6167697,1926.0,1925.9,1.2]
[1617261818321,30.6167697,1926.0,1925.9,1.2]
[1617261818516,30.6167697,1926.0,1925.9,1.2385]
[1617261818517,26.44151,1926.0,1925.9,1.2385]
[1617261819116,33.1756,1926.0,1925.9,1.2385]
[1617261819316,37.3508597,1926.0,1925.9,1.2385]
[1617261819516,29.5668697,1926.0,1925.9,1.2385]
[1617261819739,25.39161,1926.0,1925.9,1.2385]
[1617261819939,10.52736051,1926.0,1925.9,1.2385]
[1617261820139,18.47736051,1926.0,1925.9,0.0385]
[1617261820338,18.47736051,1926.0,1925.9,1.2385]
[1617261820539,22.65262021,1926.0,1925.9,1.2385]
[1617261820942,18.47736051,1926.0,1925.9,1.2385]
[1617261821341,10.52736051,1926.0,1925.9,1.2385]
[1617261823176,9.52736051,1926.0,1925.9,1.2385]
[1617261823777,11.54437253,1926.0,1925.9,1.2385]
[1617261823979,11.54437253,1926.0,1925.9,0.0385]
[1617261824178,24.54437253,1926.0,1925.9,0.0385]
[1617261824379,28.71963223,1926.0,1925.9,0.0385]
[1617261824579,35.67963223,1926.0,1925.8,0.0385]
[1617261825192,43.46343223,1926.0,1925.8,0.0385]
[1617261825392,13.70262021,1926.0,1925.8,0.0385]
[1617261825593,9.52736051,1926.0,1925.8,0.0385]
[1617261826394,8.52736051,1926.0,1925.8,0.0385]
[1617261826795,1.87736051,1926.0,1925.8,0.0385]
[1617261827397,8.37824925,1925.9,1925.8,0.0385]
[1617261827611,6.35,1925.9,1925.8,0.0385]
[1617261831476,5.35,1925.9,1925.8,0.4285]
[1617261831675,5.35,1925.9,1925.8,0.0385]
[1617261834082,31.3528,1925.9,1925.8,0.0385]
[1617261834278,31.3528,1925.9,1925.7,0.17190142]
[1617261834279,37.04,1925.8,1925.7,0.17190142]
[1617261834478,71.2152597,1925.8,1925.7,0.17190142]
[1617261834679,28.2,1925.7,1925.2,10.37656065]
[1617261834880,4.18695612,1925.6,1925.2,10.37656065]
[1617261835080,7.78671,1925.4,1925.2,10.37656065]
[1617261835281,19.38695612,1925.3,1925.2,10.37656065]
[1617261835890,23.56221582,1925.3,1925.2,10.37656065]
[1617261836090,34.31221582,1925.3,1925.2,10.37656065]
[1617261836291,64.31221582,1925.3,1925.2,10.37656065]
[1617261836490,7.7878,1925.1,1924.8,1.2]
[1617261836694,7.7878,1925.1,1924.9,3.6]
[1617261837492,10.9630597,1925.1,1924.9,3.6]
[1617261837690,7.7878,1925.1,1924.9,3.6]
[1617261838514,10.9630597,1925.1,1924.9,3.6]
[1617261839318,10.9630597,1925.1,1925.0,0.1370009]
[1617261839918,20.4378,1925.1,1925.0,0.1370009]
[1617261840118,23.6130597,1925.1,1925.0,0.1370009]
[1617261841538,22.6130597,1925.1,1925.0,0.1370009]
[1617261842541,56.6930597,1925.1,1925.0,0.1370009]
[1617261842741,56.6930597,1925.1,1924.2,1.1905249]
[1617261842742,28.2,1925.0,1924.2,1.1905249]
[1617261842944,28.2,1925.0,1924.3,1.2]
[1617261842945,2.65063681,1924.9,1924.3,1.2]
[1617261843367,30.0,1924.8,1924.3,1.2]
[1617261843567,4.31935344,1924.7,1924.3,1.2]
[1617261843766,17.01695684,1924.7,1924.3,1.2]
[1617261843966,49.19221654,1924.7,1924.3,1.2]
[1617261844167,7.7897,1924.6,1924.3,1.2]
[1617261844369,18.4816597,1924.6,1924.5,0.17565139]
[1617261844570,10.6919597,1924.6,1924.5,0.17565139]
[1617261844766,15.01131314,1924.6,1924.5,0.17565139]
[1617261844967,34.31131314,1924.6,1924.5,0.17565139]
[1617261845367,64.31131314,1924.6,1924.5,0.17565139]
[1617261846011,64.70131314,1924.6,1924.5,0.17565139]
[1617261846216,60.61783661,1924.6,1924.5,0.17565139]
[1617261846411,60.61783661,1924.6,1924.2,1.2]
[1617261846412,59.61783661,1924.6,1924.2,1.2]
[1617261846610,5.02,1924.5,1924.2,1.2]
[1617261846810,4.30160536,1924.4,1924.2,1.2]
[1617261847010,42.09231536,1924.4,1924.2,1.2]
[1617261847411,37.79071,1924.4,1924.2,1.2]
[1617261849426,37.79071,1924.4,1924.3,0.11742654]
[1617261851441,36.79071,1924.4,1924.3,0.11742654]
[1617261852942,37.79071,1924.4,1924.3,0.11742654]
[1617261855166,30.0,1924.4,1924.3,0.11742654]
[1617261856599,29.0,1924.4,1924.3,0.11742654]
[1617261857603,37.8288,1924.4,1924.3,0.11742654]
[1617261859220,28.2,1924.3,1924.1,1.0]
[1617261859415,37.8288,1924.4,1924.1,1.0]
[1617261859416,60.478704,1924.2,1924.1,1.0]
[1617261860015,56.2,1924.2,1924.1,1.0]
[1617261860221,55.2,1924.2,1924.1,1.0]
[1617261861019,62.99224,1924.2,1924.1,1.0]
[1617261861666,35.79224,1924.2,1924.1,1.0]
[1617261862463,7.79224,1924.2,1924.1,1.0]
[1617261862663,15.84224,1924.2,1924.1,1.0]
[1617261863864,7.79224,1924.2,1924.1,1.0]
[1617261864274,2.0779283,1924.3,1924.1,2.2]
[1617261865076,10.0,1924.2,1924.1,2.2]
[1617261870730,19.0,1924.2,1924.1,2.2]
[1617261871124,10.0,1924.2,1924.0,0.16711809]
[1617261871324,13.89568,1924.2,1924.0,0.44711809]
[1617261872342,13.89568,1924.2,1924.0,0.16711809]
[1617261873544,43.89568,1924.2,1924.0,0.16711809]
[1617261873746,26.44163,1924.1,1924.0,0.16711809]
[1617261873944,23.35,1924.0,1923.6,1.0]
[1617261874145,53.35,1924.0,1923.6,1.0]
[1617261874544,53.35,1924.0,1923.6,2.2]
[1617261874788,53.35,1924.0,1923.6,2.1]
[1617261874988,3.58,1923.9,1923.6,2.1]
[1617261875189,13.4505244,1923.9,1923.6,2.429]
[1617261875594,53.4505244,1923.9,1923.6,0.9]
[1617261875789,3.52588826,1923.8,1923.6,0.9]
[1617261875993,3.52588826,1923.8,1923.2,1.19026769]
[1617261875994,26.65,1923.6,1923.2,1.19026769]
[1617261876190,7.7948,1923.4,1923.2,1.19026769]
[1617261876590,7.7948,1923.4,1922.9,0.38]
[1617261876789,12.4718172,1923.4,1922.9,0.38]
[1617261876989,3.42,1923.3,1923.1,1.28]
[1617261877189,3.42,1923.3,1923.2,0.4]
[1617261877405,11.21489,1923.3,1923.2,0.4]
[1617261877605,11.21489,1923.3,1923.1,1.0]
[1617261877805,11.21489,1923.3,1923.2,1.2]
[1617261878205,15.11253,1923.3,1923.2,1.2]
[1617261878806,11.69253,1923.3,1923.2,1.2]
[1617261880421,11.69253,1923.3,1923.2,1.48]
[1617261881022,11.69253,1923.3,1923.2,1.6615651]
[1617261881624,13.69253,1923.3,1923.2,1.6615651]
[1617261881825,13.69253,1923.3,1923.2,0.1815651]
[1617261882025,18.81253,1923.3,1923.2,0.1815651]
[1617261883073,19.81253,1923.3,1923.2,0.1815651]
[1617261884676,12.01764,1923.3,1923.2,0.1815651]
[1617261885477,13.04764,1923.3,1923.2,0.1815651]
[1617261886485,22.69764,1923.3,1923.2,0.1815651]
[1617261887082,13.04764,1923.3,1923.2,0.1815651]
[1617261887281,20.84251,1923.3,1923.2,0.1815651]
[1617261888521,20.84251,1923.3,1923.1,2.2]
[1617261888522,10.95,1923.2,1923.1,2.2]
[1617261888722,20.74528,1923.2,1923.1,2.2]
[1617261888922,12.95,1923.2,1923.1,2.2]
[1617261889527,17.1845702,1923.2,1922.8,15.16128648]
[1617261889924,2.0,1923.0,1922.8,10.27216648]
[1617261890523,2.0,1923.0,1922.8,13.27216648]
[1617261890923,2.0,1923.0,1922.9,0.15871961]
[1617261891123,2.0,1923.0,1922.9,0.83871961]
[1617261891325,2.0,1923.0,1922.9,2.03871961]
[1617261891725,2.0,1923.0,1922.9,1.75871961]
[1617261891923,2.0,1923.0,1922.9,1.35871961]
[1617261892123,2.0,1923.0,1922.9,1.63871961]
[1617261892326,8.0,1923.0,1922.9,1.63871961]
[1617261893344,8.0,1923.0,1922.9,2.04871961]
[1617261893543,2.0,1923.0,1922.9,2.04871961]
[1617261893743,2.0,1923.0,1922.9,1.35871961]
[1617261893944,7.36,1923.0,1922.9,1.35871961]
[1617261894944,2.0,1923.0,1922.9,1.35871961]
[1617261896171,2.0,1923.0,1922.9,1.74871961]
[1617261896373,8.3,1923.0,1922.9,1.74871961]
[1617261898074,8.3,1923.0,1922.9,0.54871961]
[1617261899192,2.0,1923.0,1922.9,0.15871961]
[1617261899392,8.5,1923.0,1922.9,0.15871961]
[1617261901028,8.5,1923.0,1922.8,8.76416648]
[1617261901228,9.8742469,1923.1,1922.8,3.56668648]
[1617261901229,23.93515328,1922.9,1922.8,3.56668648]
[1617261901429,19.69,1922.9,1922.8,3.56668648]
[1617261903030,19.69,1922.9,1922.6,2.2]
[1617261903031,58.1,1922.9,1922.6,1.0]
[1617261903232,58.1,1922.9,1922.6,0.95]
[1617261903233,34.89813,1922.7,1922.6,0.95]
[1617261903432,34.89813,1922.7,1922.3,0.28]
[1617261903433,2.0,1922.5,1922.3,0.28]
[1617261903645,13.4383862,1922.5,1922.2,0.42]
[1617261904044,13.4383862,1922.5,1922.2,0.82]
[1617261904247,13.4383862,1922.5,1922.2,2.02]
[1617261904445,13.4383862,1922.5,1922.2,1.47]
[1617261904647,13.4383862,1922.5,1922.3,0.4]
[1617261904850,13.4383862,1922.5,1922.3,0.68]
[1617261904851,5.89895,1922.4,1922.3,0.68]
[1617261905046,4.69895,1922.4,1922.3,0.4]
[1617261905445,2.0,1922.4,1922.3,0.4]
[1617261905846,2.0,1922.4,1922.2,10.39485]
[1617261905847,4.2191133,1922.4,1922.2,10.39485]
[1617261906047,4.2191133,1922.4,1922.2,10.80485]
[1617261906270,4.2191133,1922.4,1922.2,10.39485]
[1617261906476,4.2191133,1922.4,1922.1,2.294]
[1617261906671,4.2191133,1922.4,1922.3,0.10760883]
[1617261906872,4.0791133,1922.4,1922.3,0.10760883]
[1617261907273,10.9291133,1922.4,1922.3,0.10760883]
[1617261907476,7.9777633,1922.4,1922.3,0.10760883]
[1617261908274,11.8765633,1922.4,1922.3,5.11760883]
[1617261908674,11.8765633,1922.4,1922.3,0.10760883]
[1617261909698,11.8765633,1922.4,1922.3,5.11760883]
[1617261909896,14.8165633,1922.4,1922.3,5.11760883]
[1617261910499,14.8165633,1922.4,1922.3,0.10760883]
[1617261910700,11.8765633,1922.4,1922.3,0.10760883]
[1617261911725,11.8765633,1922.4,1922.3,0.77760883]
[1617261911726,7.9779133,1922.4,1922.3,0.77760883]
[1617261911926,48.5727,1923.1,1922.3,16.36363638]
[1617261911927,2.0,1923.0,1922.3,16.36363638]
[1617261912125,1.62,1922.4,1922.3,15.97602755]
[1617261912325,1.62,1922.4,1922.3,18.1904711]
[1617261912535,0.70545564,1922.4,1922.3,40.61243355]
[1617261912925,0.70545564,1922.4,1922.3,43.05021881]
[1617261913126,2.0785977,1922.8,1922.3,30.05021881]
[1617261913325,2.0785977,1922.8,1922.7,0.38]
[1617261913525,1.0785977,1922.8,1922.7,6.7035]
[1617261913725,2.0785977,1922.8,1922.7,6.7035]
[1617261913924,2.0785977,1922.8,1922.7,6.9835]
[1617261914160,2.0785977,1922.8,1922.7,14.4335]
[1617261914361,4.0785977,1922.8,1922.7,14.4335]
[1617261914561,3.0,1922.8,1922.7,18.2135]
[1617261914960,3.0,1922.8,1922.7,19.40376769]
[1617261915160,3.0,1922.8,1922.7,20.60376769]
[1617261915760,3.0,1922.8,1922.7,28.39776769]
[1617261916160,3.0,1922.8,1922.7,26.79776769]
[1617261916561,3.0,1922.8,1922.7,26.9116919]
[1617261917576,3.89638,1923.8,1922.9,11.61932864]
[1617261917577,0.38,1923.8,1922.9,11.61932864]
[1617261917779,0.38,1923.8,1923.3,0.719]
[1617261917780,0.14,1923.7,1923.3,0.719]
[1617261917979,0.14,1923.7,1923.4,0.371]
[1617261918176,0.14,1923.7,1923.5,5.01]
[1617261918378,33.9354844,1924.1,1923.6,5.339]
[1617261918379,0.14,1924.0,1923.6,5.339]
[1617261918577,0.14,1924.0,1923.7,6.3]
[1617261918578,0.014,1924.0,1923.7,6.3]
[1617261918775,0.014,1924.0,1923.7,13.3192]
[1617261918976,0.014,1924.0,1923.7,16.2992]
[1617261919423,0.394,1924.0,1923.9,7.79059]
[1617261919625,0.38,1924.0,1923.9,7.79059]
[1617261920631,5.60067856,1924.1,1923.9,7.79059]
[1617261921225,6.00067856,1924.1,1923.9,7.79059]
[1617261921425,5.60067856,1924.1,1923.9,7.79059]
[1617261921623,2.0776874,1924.1,1924.0,0.10947545]
[1617261923226,5.60059306,1924.1,1924.0,0.10947545]
[1617261923425,6.60059306,1924.1,1924.0,0.10947545]
[1617261923627,5.60059306,1924.1,1924.0,0.10947545]
[1617261926444,5.60059306,1924.1,1924.0,5.11947545]
[1617261926645,5.98059306,1924.1,1924.0,0.10947545]
[1617261927047,17.28059306,1924.1,1924.0,0.10947545]
[1617261927673,5.98059306,1924.1,1924.0,0.10947545]
[1617261927872,5.60059306,1924.1,1924.0,0.10947545]
[1617261928673,4.60059306,1924.1,1924.0,0.10947545]
[1617261929473,4.98059306,1924.1,1924.0,0.10947545]
[1617261929897,14.88059306,1924.1,1924.0,0.10947545]
[1617261931300,14.50059306,1924.1,1924.0,0.10947545]
[1617261931902,44.90059306,1924.1,1924.0,0.10947545]
[1617261933129,14.50059306,1924.1,1924.0,0.10947545]
[1617261933530,15.57828046,1924.1,1924.0,0.10947545]
[1617261934730,55.96828046,1924.1,1924.0,0.10947545]
[1617261937374,43.0776874,1924.1,1924.0,0.10947545]
[1617261937574,1.0,1924.1,1924.0,0.10947545]
[1617261938575,13.89548,1924.2,1924.0,0.10947545]
[1617261938978,13.89548,1924.2,1924.0,7.89998545]
[1617261939176,13.89548,1924.2,1924.0,14.05308545]
[1617261940407,10.46,1924.1,1924.0,13.90308545]
[1617261941008,18.46,1924.1,1924.0,13.90308545]
[1617261941307,10.46,1924.1,1924.0,6.1531]
[1617261941511,10.46,1924.1,1923.7,11.57841769]
[1617261941709,0.4,1923.9,1923.7,11.85841769]
[1617261941909,0.4,1923.9,1923.8,7.7915]
[1617261942309,0.4,1923.9,1923.8,7.96657722]
[1617261942910,8.45,1923.9,1923.8,7.96657722]
[1617261943130,8.45,1923.9,1923.8,0.17507722]
[1617261943131,60.56833512,1923.9,1923.8,0.17507722]
[1617261943529,28.15,1923.8,1923.4,1.19026769]
[1617261943730,15.56,1923.5,1923.4,1.19026769]
[1617261943929,15.65,1923.4,1923.0,12.01199959]